[Event "elllobregat Open-A 2019"]
[Site "El Prat de Llobregat"]
[Date "2019.12.07"]
[Round "5.2"]
[White "Puranik, Abhimanyu"]
[Black "Zanan, Evgeny"]
[Result "1/2-1/2"]
[ECO "C92"]
[WhiteElo "2580"]
[BlackElo "2493"]
[Annotator "ChessBase"]
[PlyCount "97"]
[EventDate "2019.12.03"]
[EventType "swiss"]
[EventCountry "ESP"]
[SourceTitle "playchess.com"]
[Source "ChessBase"]
[SourceQuality "1"]
[TimeControl "40/5400+30:1800+30"]

1. e4 {[%emt 0:00:00]} e5 {[%emt 0:00:00]} 2. Nf3 {[%emt 0:00:00]} Nc6 {[%emt 0:00:00]} 3. Bb5 {[%emt 0:00:00]} a6 {[%emt 0:00:00]} 4. Ba4 {[%emt 0:00:00]} Nf6 {[%emt 0:00:00]} 5. O-O {[%emt 0:00:00]} Be7 {[%emt 0:00:02]} 6. Re1 {[%emt 0:00:05]} b5 {[%emt 0:00:07]} 7. Bb3 {[%emt 0:00:03]} d6 {[%emt 0:00:05]} 8. c3 {[%emt 0:00:04]} O-O {[%emt 0:00:05]} 9. h3 {[%emt 0:00:59]} Bb7 10. d4 {[%emt 0:01:32]} Re8 {[%emt 0:02:05]} 11. Nbd2 {[%emt 0:00:18]} Bf8 {[%emt 0:00:08]} 12. a4 {[%emt 0:15:05]} Na5 {[%emt 0:00:20]} 13. Bc2 {[%emt 0:00:10]} b4 {[%emt 0:00:04]} 14. Bd3 exd4 {[%emt 0:07:56]} 15. cxd4 {[%emt 0:09:07]} g6 {[%emt 0:02:01]} 16. b3 d5 {[%emt 0:19:26]} 17. e5 {[%emt 0:05:29]} Nd7 {[%emt 0:02:07]} 18. Nf1 {[%emt 0:30:31]} Bg7 {[%emt 0:16:38]} 19. Bg5 {[%emt 0:01:51]} Qb8 {[%emt 0:04:43]} 20. Ne3 {[%emt 0:06:34]} c5 {[%emt 0:02:23]} 21. Ng4 {[%emt 0:10:18]} cxd4 {[%emt 0:03:46]} 22. Bh6 {[%emt 0:02:49]} Bh8 {[%emt 0:17:15]} 23. Bd2 Bg7 {[%emt 0:08:28]} 24. Bxb4 {[%emt 0:03:35]} h5 25. Ng5 {[%emt 0:09:32]} Nxe5 {[%emt 0:10:28]} 26. Nxe5 {[%emt 0:00:34]} Rxe5 {[%emt 0:00:05]} 27. Rxe5 {[%emt 0:01:27]} Qxe5 {[%emt 0:00:10]} 28. Nxf7 {[%emt 0:00:20]} Kxf7 {[%emt 0:00:07]} 29. Bxa5 {[%emt 0:00:05]} Bf8 {[%emt 0:04:32]} 30. Qf3+ {[%emt 0:02:00]} Qf6 {[%emt 0:01:07]} 31. Qxf6+ {[%emt 0:00:29]} Kxf6 {[%emt 0:00:04]} 32. Bb6 {[%emt 0:00:11]} Bd6 {[%emt 0:00:02]} 33. f4 {[%emt 0:01:57]} Rc8 {[%emt 0:00:50]} 34. Bxd4+ {[%emt 0:00:10]} Kf7 {[%emt 0:00:02]} 35. f5 gxf5 {[%emt 0:01:43]} 36. Bxf5 {[%emt 0:01:41]} Bc5 {[%emt 0:00:30]} 37. Rd1 {[%emt 0:00:29]} Bxd4+ {[%emt 0:00:03]} 38. Rxd4 {[%emt 0:00:02]} Rc3 {[%emt 0:00:04]} 39. Rb4 Bc6 {[%emt 0:00:51]} 40. Rb6 {[%emt 0:00:00]} a5 41. b4 {[%emt 0:13:03]} axb4 {[%emt 0:03:13]} 42. a5 {[%emt 0:05:07]} Ke7 43. a6 {[%emt 0:04:24]} Kd6 {[%emt 0:03:34]} 44. Rxb4 Ra3 {[%emt 0:05:40]} 45. Bc8 {[%emt 0:03:37]} Kc5 {[%emt 0:01:18]} 46. Rh4 {[%emt 0:00:17]} Be8 {[%emt 0:00:58]} 47. Bb7 {[%emt 0:02:02]} d4 {[%emt 0:01:34]} 48. Re4 {[%emt 0:01:11]} Bb5 {[%emt 0:00:48]} 49. Re5+ 1/2-1/2

[Event "elllobregat Open-A 2019"]
[Site "El Prat de Llobregat"]
[Date "2019.12.07"]
[Round "5.3"]
[White "Raja Rithvik R"]
[Black "Alonso Rosell, Alvar"]
[Result "1/2-1/2"]
[ECO "D02"]
[WhiteElo "2381"]
[BlackElo "2548"]
[Annotator "ChessBase"]
[PlyCount "31"]
[EventDate "2019.12.03"]
[EventType "swiss"]
[EventCountry "ESP"]
[SourceTitle "playchess.com"]
[Source "ChessBase"]
[SourceQuality "1"]
[TimeControl "40/5400+30:1800+30"]

1. Nf3 d5 {[%emt 0:26:43]} 2. d4 {[%emt 0:00:00]} Nf6 {[%emt 0:00:08]} 3. c4 {[%emt 0:00:00]} e6 {[%emt 0:00:07]} 4. g3 {[%emt 0:00:14]} Bb4+ {[%emt 0:00:06]} 5. Bd2 {[%emt 0:00:14]} Bd6 {[%emt 0:00:02]} 6. Nc3 {[%emt 0:00:47]} O-O {[%emt 0:03:39]} 7. Bg5 {[%emt 0:00:21]} c6 {[%emt 0:01:30]} 8. Bg2 {[%emt 0:00:19]} h6 {[%emt 0:00:14]} 9. Bxf6 {[%emt 0:00:05]} Qxf6 {[%emt 0:00:04]} 10. O-O {[%emt 0:00:29]} Qd8 {[%emt 0:00:02]} 11. Qb3 {[%emt 0:00:04]} Nd7 {[%emt 0:06:39]} 12. e4 {[%emt 0:02:58]} dxc4 {[%emt 0:01:31]} 13. Qxc4 {[%emt 0:00:08]} e5 {[%emt 0:00:12]} 14. Rad1 {[%emt 0:03:47]} Qe7 {[%emt 0:01:35]} 15. Rfe1 {[%emt 0:06:25]} Nb6 {[%emt 0:02:48]} 16. Qb3 {[%emt 0:03:51]} 1/2-1/2

[Event "elllobregat Open-A 2019"]
[Site "El Prat de Llobregat"]
[Date "2019.12.07"]
[Round "5.4"]
[White "Kjartansson, Gudmundur"]
[Black "Erigaisi Arjun"]
[Result "0-1"]
[ECO "D31"]
[WhiteElo "2448"]
[BlackElo "2544"]
[Annotator "ChessBase"]
[PlyCount "136"]
[EventDate "2019.12.03"]
[EventType "swiss"]
[EventCountry "ESP"]
[SourceTitle "playchess.com"]
[Source "ChessBase"]
[SourceQuality "1"]
[TimeControl "40/5400+30:1800+30"]

1. d4 {[%emt 0:00:00]} e6 {[%emt 0:01:30]} 2. c4 {[%emt 0:00:00]} d5 {[%emt 0:00:07]} 3. Nc3 {[%emt 0:00:51]} c6 {[%emt 0:00:07]} 4. e4 dxe4 {[%emt 0:00:06]} 5. Nxe4 {[%emt 0:01:19]} Bb4+ {[%emt 0:00:06]} 6. Bd2 {[%emt 0:00:34]} Qxd4 {[%emt 0:00:07]} 7. Bxb4 {[%emt 0:00:04]} Qxe4+ {[%emt 0:00:06]} 8. Be2 {[%emt 0:08:54]} Na6 {[%emt 0:01:02]} 9. Bd6 {[%emt 0:01:02]} e5 {[%emt 0:12:47]} 10. Nf3 {[%emt 0:15:05]} Bg4 {[%emt 0:32:51]} 11. Nxe5 {[%emt 0:14:48]} Qxe2+ {[%emt 0:08:18]} 12. Qxe2 {[%emt 0:00:04]} Bxe2 {[%emt 0:00:05]} 13. Kxe2 {[%emt 0:00:05]} Nh6 {[%emt 0:00:55]} 14. Rhd1 {[%emt 0:22:46]} O-O-O {[%emt 0:00:30]} 15. Kf1 {[%emt 0:00:30]} f6 {[%emt 0:02:23]} 16. Nf3 {[%emt 0:00:34]} Nf5 {[%emt 0:00:11]} 17. Ba3 {[%emt 0:00:54]} h5 {[%emt 0:00:07]} 18. b3 {[%emt 0:03:47]} b6 {[%emt 0:02:16]} 19. Ne1 {[%emt 0:10:16]} Nc7 {[%emt 0:03:48]} 20. Rd3 {[%emt 0:03:55]} Ne6 {[%emt 0:01:04]} 21. Rad1 {[%emt 0:00:16]} Rxd3 {[%emt 0:00:10]} 22. Rxd3 {[%emt 0:00:08]} Re8 {[%emt 0:05:17]} 23. Nc2 Ng5 {[%emt 0:05:37]} 24. Bc1 {[%emt 0:03:06]} Ne4 {[%emt 0:00:09]} 25. Ne3 {[%emt 0:00:40]} Nh6 {[%emt 0:01:02]} 26. b4 {[%emt 0:03:51]} Nf7 {[%emt 0:01:15]} 27. f3 {[%emt 0:00:29]} Ned6 {[%emt 0:00:19]} 28. Kf2 {[%emt 0:06:30]} Kc7 {[%emt 0:00:58]} 29. Bb2 {[%emt 0:00:48]} Nh6 {[%emt 0:03:58]} 30. a4 Nb7 {[%emt 0:01:13]} 31. b5 {[%emt 0:03:32]} Nc5 {[%emt 0:03:06]} 32. Ra3 Rd8 33. Ke2 {[%emt 0:00:07]} Nf7 {[%emt 0:00:35]} 34. a5 {[%emt 0:00:43]} cxb5 {[%emt 0:00:57]} 35. cxb5 {[%emt 0:00:10]} Nd6 {[%emt 0:00:27]} 36. axb6+ {[%emt 0:00:49]} axb6 37. Ra7+ {[%emt 0:00:20]} Ncb7 {[%emt 0:01:41]} 38. Nd5+ {[%emt 0:00:52]} Kb8 {[%emt 0:00:02]} 39. Ra4 {[%emt 0:00:59]} Rc8 {[%emt 0:02:31]} 40. Rb4 {[%emt 0:00:00]} Rc2+ {[%emt 0:00:00]} 41. Kf1 {[%emt 0:04:22]} Nc5 {[%emt 0:01:54]} 42. Ne3 {[%emt 0:17:34]} Rd2 {[%emt 0:00:09]} 43. Rd4 {[%emt 0:04:10]} Rxb2 {[%emt 0:01:21]} 44. Rxd6 Rxb5 {[%emt 0:00:33]} 45. Rd8+ {[%emt 0:00:53]} Kc7 {[%emt 0:00:31]} 46. Rd5 {[%emt 0:02:48]} Rb1+ {[%emt 0:02:16]} 47. Ke2 {[%emt 0:00:37]} Ne6 {[%emt 0:00:59]} 48. Kd2 {[%emt 0:00:49]} Rb2+ {[%emt 0:01:01]} 49. Kd1 {[%emt 0:03:46]} Nf4 {[%emt 0:01:04]} 50. Rf5 {[%emt 0:00:32]} Nxg2 {[%emt 0:00:27]} 51. Nxg2 {[%emt 0:00:26]} Rxg2 {[%emt 0:00:06]} 52. Rxh5 Rg5 {[%emt 0:00:48]} 53. Rh8 {[%emt 0:00:21]} Kd6 {[%emt 0:00:39]} 54. h4 {[%emt 0:00:07]} Rd5+ {[%emt 0:01:15]} 55. Ke2 {[%emt 0:00:06]} b5 {[%emt 0:02:03]} 56. Rh7 {[%emt 0:00:19]} g5 {[%emt 0:02:35]} 57. h5 {[%emt 0:00:43]} Re5+ {[%emt 0:00:14]} 58. Kd3 {[%emt 0:00:15]} Re7 {[%emt 0:00:06]} 59. Rh8 {[%emt 0:00:26]} Ke5 {[%emt 0:00:08]} 60. Ke3 {[%emt 0:02:01]} Kf5+ {[%emt 0:00:28]} 61. Kf2 {[%emt 0:00:07]} Rb7 {[%emt 0:00:05]} 62. Rg8 {[%emt 0:00:43]} b4 {[%emt 0:00:33]} 63. Re8 {[%emt 0:01:06]} b3 {[%emt 0:00:40]} 64. Re1 {[%emt 0:00:05]} b2 {[%emt 0:00:32]} 65. Rb1 {[%emt 0:00:03]} Rb3 {[%emt 0:00:07]} 66. Kg2 {[%emt 0:00:42]} Ke6 {[%emt 0:00:16]} 67. Kg3 {[%emt 0:01:07]} f5 {[%emt 0:00:09]} 68. Kg2 {[%emt 0:00:32]} Kf6 {[%emt 0:00:07]} 0-1

[Event "elllobregat Open-A 2019"]
[Site "El Prat de Llobregat"]
[Date "2019.12.07"]
[Round "5.9"]
[White "Low, Zhen Yu Cyrus"]
[Black "Arizmendi Martinez, Julen Luis"]
[Result "1/2-1/2"]
[ECO "B33"]
[WhiteElo "2420"]
[BlackElo "2511"]
[Annotator "ChessBase"]
[PlyCount "73"]
[EventDate "2019.12.03"]
[EventType "swiss"]
[EventCountry "ESP"]
[SourceTitle "playchess.com"]
[Source "ChessBase"]
[SourceQuality "1"]
[TimeControl "40/5400+30:1800+30"]

1. e4 {[%emt 0:00:00]} c5 {[%emt 0:05:53]} 2. Nf3 {[%emt 0:00:00]} Nc6 {[%emt 0:00:21]} 3. d4 {[%emt 0:00:00]} cxd4 {[%emt 0:00:08]} 4. Nxd4 {[%emt 0:00:01]} Nf6 {[%emt 0:00:17]} 5. Nc3 {[%emt 0:00:09]} e6 {[%emt 0:00:16]} 6. Nxc6 {[%emt 0:04:14]} bxc6 {[%emt 0:00:34]} 7. e5 {[%emt 0:00:07]} Nd5 {[%emt 0:00:05]} 8. Ne4 {[%emt 0:00:06]} Qc7 {[%emt 0:00:20]} 9. f4 {[%emt 0:00:09]} Qb6 {[%emt 0:00:32]} 10. c4 {[%emt 0:00:08]} Bb4+ {[%emt 0:00:42]} 11. Ke2 {[%emt 0:00:08]} f5 {[%emt 0:00:18]} 12. exf6 {[%emt 0:00:06]} Nxf6 {[%emt 0:00:12]} 13. Be3 {[%emt 0:00:05]} Qd8 {[%emt 0:00:12]} 14. Nd6+ {[%emt 0:00:07]} Bxd6 {[%emt 0:00:08]} 15. Qxd6 {[%emt 0:00:05]} Bb7 {[%emt 0:00:16]} 16. Rd1 {[%emt 0:02:08]} Rc8 {[%emt 0:03:13]} 17. Rg1 {[%emt 0:00:21]} c5 {[%emt 0:01:31]} 18. g4 {[%emt 0:02:02]} h6 {[%emt 0:01:11]} 19. Bg2 {[%emt 0:12:01]} Bxg2 {[%emt 0:03:46]} 20. Rxg2 {[%emt 0:00:06]} Qb6 {[%emt 0:07:04]} 21. Qxb6 {[%emt 0:12:47]} axb6 {[%emt 0:00:22]} 22. Rd6 {[%emt 0:00:12]} Rb8 {[%emt 0:04:23]} 23. Kf3 {[%emt 0:00:13]} Rb7 {[%emt 0:43:46]} 24. b4 {[%emt 0:21:37]} cxb4 {[%emt 0:16:08]} 25. Rxb6 {[%emt 0:02:17]} Rxb6 {[%emt 0:00:33]} 26. Bxb6 {[%emt 0:00:11]} d5 {[%emt 0:07:07]} 27. Rb2 {[%emt 0:06:18]} dxc4 {[%emt 0:02:08]} 28. Rxb4 {[%emt 0:00:04]} Nd5 {[%emt 0:00:36]} 29. Rxc4 {[%emt 0:01:06]} Nxb6 {[%emt 0:01:24]} 30. Rc6 {[%emt 0:00:06]} Ke7 {[%emt 0:00:21]} 31. Rxb6 {[%emt 0:00:09]} Ra8 {[%emt 0:00:02]} 32. Rb2 {[%emt 0:11:33]} Ra3+ {[%emt 0:00:01]} 33. Ke2 {[%emt 0:02:40]} Ra4 {[%emt 0:00:40]} 34. Ke3 {[%emt 0:01:30]} Ra3+ {[%emt 0:00:03]} 35. Kf2 {[%emt 0:01:45]} Ra4 {[%emt 0:00:04]} 36. Ke3 {[%emt 0:01:36]} Ra3+ {[%emt 0:00:04]} 37. Ke4 1/2-1/2

[Event "elllobregat Open-A 2019"]
[Site "El Prat de Llobregat"]
[Date "2019.12.07"]
[Round "5.10"]
[White "Del Rio De Angelis, Salvador G."]
[Black "Dhulipalla Bala Chandra Prasad"]
[Result "1/2-1/2"]
[ECO "D31"]
[WhiteElo "2507"]
[BlackElo "2414"]
[Annotator "ChessBase"]
[PlyCount "39"]
[EventDate "2019.12.03"]
[EventType "swiss"]
[EventCountry "ESP"]
[SourceTitle "playchess.com"]
[Source "ChessBase"]
[SourceQuality "1"]
[TimeControl "40/5400+30:1800+30"]

1. d4 {[%emt 0:00:00]} d5 {[%emt 0:00:00]} 2. c4 {[%emt 0:00:17]} e6 {[%emt 0:00:03]} 3. Nc3 {[%emt 0:00:21]} a6 {[%emt 0:00:23]} 4. cxd5 {[%emt 0:01:01]} exd5 {[%emt 0:00:10]} 5. Nf3 {[%emt 0:00:35]} c6 {[%emt 0:00:33]} 6. Bf4 {[%emt 0:00:29]} Nf6 {[%emt 0:00:20]} 7. e3 {[%emt 0:00:33]} Nh5 {[%emt 0:00:47]} 8. Bg5 {[%emt 0:03:06]} Be7 {[%emt 0:00:07]} 9. Bxe7 {[%emt 0:00:07]} Qxe7 {[%emt 0:00:03]} 10. Qc2 {[%emt 0:04:06]} O-O {[%emt 0:06:04]} 11. Bd3 {[%emt 0:04:10]} g6 {[%emt 0:30:47]} 12. O-O {[%emt 0:03:37]} Bg4 {[%emt 0:03:56]} 13. Nd2 {[%emt 0:09:58]} Nd7 {[%emt 0:02:55]} 14. Rfe1 {[%emt 0:02:46]} Rfe8 {[%emt 0:03:28]} 15. Nf1 {[%emt 0:07:43]} Ndf6 {[%emt 0:07:47]} 16. Na4 {[%emt 0:04:54]} Ng7 {[%emt 0:04:04]} 17. Qc5 {[%emt 0:05:30]} Qc7 {[%emt 0:07:44]} 18. Qb6 {[%emt 0:00:20]} Qe7 {[%emt 0:02:33]} 19. Qc5 {[%emt 0:01:32]} Qc7 {[%emt 0:00:19]} 20. Qb6 {[%emt 0:00:06]} 1/2-1/2

[Event "elllobregat Open-A 2019"]
[Site "El Prat de Llobregat"]
[Date "2019.12.07"]
[Round "5.11"]
[White "Erenberg, Ariel"]
[Black "Perez Mitjans, Orelvis"]
[Result "1/2-1/2"]
[ECO "E62"]
[WhiteElo "2479"]
[BlackElo "2412"]
[Annotator "ChessBase"]
[PlyCount "64"]
[EventDate "2019.12.03"]
[EventType "swiss"]
[EventCountry "ESP"]
[SourceTitle "playchess.com"]
[Source "ChessBase"]
[SourceQuality "1"]
[TimeControl "40/5400+30:1800+30"]

1. d4 {[%emt 0:00:00]} Nf6 {[%emt 0:04:09]} 2. c4 g6 {[%emt 0:00:07]} 3. g3 {[%emt 0:00:00]} Bg7 {[%emt 0:00:08]} 4. Bg2 {[%emt 0:00:00]} O-O {[%emt 0:00:06]} 5. Nc3 {[%emt 0:00:00]} d6 {[%emt 0:00:07]} 6. Nf3 {[%emt 0:00:02]} Nc6 {[%emt 0:00:08]} 7. O-O {[%emt 0:00:10]} Bg4 {[%emt 0:00:07]} 8. d5 {[%emt 0:02:30]} Na5 {[%emt 0:00:09]} 9. b3 {[%emt 0:04:07]} c5 {[%emt 0:00:42]} 10. Bb2 {[%emt 0:04:57]} a6 {[%emt 0:00:14]} 11. Nd2 {[%emt 0:20:30]} Rb8 {[%emt 0:02:24]} 12. Qc2 {[%emt 0:07:06]} b5 {[%emt 0:03:14]} 13. Rae1 {[%emt 0:11:02]} bxc4 {[%emt 0:17:48]} 14. bxc4 {[%emt 0:00:23]} e5 {[%emt 0:00:29]} 15. Nd1 {[%emt 0:02:27]} Bd7 {[%emt 0:15:49]} 16. Bc3 {[%emt 0:03:45]} Nb7 {[%emt 0:10:08]} 17. e4 {[%emt 0:01:06]} Nh5 {[%emt 0:01:26]} 18. Nb2 {[%emt 0:14:20]} f5 {[%emt 0:02:10]} 19. Nd3 {[%emt 0:01:03]} f4 {[%emt 0:00:26]} 20. Rb1 {[%emt 0:00:17]} Bc8 {[%emt 0:13:15]} 21. Rb2 {[%emt 0:02:50]} Ra8 {[%emt 0:00:43]} 22. Rfb1 {[%emt 0:01:44]} Qe7 {[%emt 0:03:57]} 23. Qa4 {[%emt 0:02:51]} Nd8 {[%emt 0:01:10]} 24. Rb8 {[%emt 0:03:54]} Rxb8 {[%emt 0:03:37]} 25. Rxb8 {[%emt 0:00:01]} Qc7 {[%emt 0:00:04]} 26. Rb1 {[%emt 0:00:45]} Bh6 {[%emt 0:00:50]} 27. Qa5 {[%emt 0:01:21]} Qd7 {[%emt 0:05:35]} 28. Rb8 {[%emt 0:08:09]} Nf7 {[%emt 0:00:07]} 29. Qb6 {[%emt 0:04:51]} Qa4 {[%emt 0:10:11]} 30. Qb3 {[%emt 0:00:56]} Qd7 {[%emt 0:00:07]} 31. Qb6 {[%emt 0:01:49]} Qa4 {[%emt 0:00:20]} 32. Qb3 {[%emt 0:01:28]} Qd7 {[%emt 0:00:05]} 1/2-1/2

[Event "elllobregat Open-A 2019"]
[Site "El Prat de Llobregat"]
[Date "2019.12.07"]
[Round "5.12"]
[White "Jerez Perez, Alfonso"]
[Black "Karthik Venkataraman"]
[Result "1/2-1/2"]
[ECO "B06"]
[WhiteElo "2369"]
[BlackElo "2470"]
[Annotator "ChessBase"]
[PlyCount "77"]
[EventDate "2019.12.03"]
[EventType "swiss"]
[EventCountry "ESP"]
[SourceTitle "playchess.com"]
[Source "ChessBase"]
[SourceQuality "1"]
[TimeControl "40/5400+30:1800+30"]

1. e4 {[%emt 0:00:00]} g6 {[%emt 0:06:19]} 2. d4 {[%emt 0:00:50]} Bg7 {[%emt 0:01:39]} 3. Nc3 {[%emt 0:00:50]} d6 {[%emt 0:00:03]} 4. Nf3 {[%emt 0:00:14]} a6 {[%emt 0:00:05]} 5. a4 {[%emt 0:00:24]} Nf6 {[%emt 0:00:04]} 6. Be2 {[%emt 0:00:17]} O-O {[%emt 0:00:05]} 7. O-O {[%emt 0:00:10]} Nc6 {[%emt 0:00:30]} 8. Be3 {[%emt 0:01:42]} e5 {[%emt 0:00:28]} 9. h3 {[%emt 0:01:49]} exd4 {[%emt 0:05:57]} 10. Nxd4 {[%emt 0:00:44]} Re8 {[%emt 0:00:11]} 11. Nxc6 {[%emt 0:02:19]} bxc6 {[%emt 0:00:02]} 12. Bf3 {[%emt 0:00:11]} Rb8 {[%emt 0:02:35]} 13. Rb1 {[%emt 0:00:51]} Nd7 {[%emt 0:06:53]} 14. Qd2 {[%emt 0:02:18]} Qf6 {[%emt 0:02:36]} 15. Rfe1 {[%emt 0:10:29]} h5 {[%emt 0:09:34]} 16. Be2 {[%emt 0:26:15]} Nc5 {[%emt 0:06:48]} 17. Bxc5 {[%emt 0:10:47]} dxc5 {[%emt 0:00:09]} 18. Bc4 {[%emt 0:00:05]} Rxb2 {[%emt 0:04:24]} 19. Rxb2 {[%emt 0:00:06]} Qxc3 {[%emt 0:00:03]} 20. Qxc3 {[%emt 0:00:14]} Bxc3 {[%emt 0:00:04]} 21. Rbb1 {[%emt 0:00:06]} Bxe1 {[%emt 0:00:05]} 22. Rxe1 {[%emt 0:00:03]} Be6 {[%emt 0:04:51]} 23. Bxe6 {[%emt 0:02:16]} Rxe6 {[%emt 0:00:03]} 24. f3 {[%emt 0:02:14]} Rd6 {[%emt 0:02:21]} 25. Rb1 {[%emt 0:03:07]} Rd4 {[%emt 0:11:11]} 26. a5 {[%emt 0:03:40]} Rb4 {[%emt 0:01:51]} 27. Rd1 {[%emt 0:00:54]} Rb5 {[%emt 0:02:53]} 28. Rd7 {[%emt 0:01:16]} c4 {[%emt 0:00:08]} 29. Rxc7 {[%emt 0:00:19]} c5 {[%emt 0:00:02]} 30. Kf2 {[%emt 0:01:56]} Rxa5 31. Ke3 {[%emt 0:00:27]} h4 {[%emt 0:05:21]} 32. e5 {[%emt 0:01:54]} g5 {[%emt 0:05:32]} 33. Ke4 {[%emt 0:01:24]} Ra2 {[%emt 0:04:17]} 34. Kf5 {[%emt 0:03:45]} Rxc2 {[%emt 0:00:04]} 35. Kf6 {[%emt 0:01:28]} Rxg2 {[%emt 0:00:04]} 36. e6 {[%emt 0:02:58]} fxe6 {[%emt 0:00:07]} 37. Rc8+ {[%emt 0:00:05]} Kh7 {[%emt 0:00:04]} 38. Rc7+ {[%emt 0:00:04]} Kg8 {[%emt 0:00:12]} 39. Rc8+ {[%emt 0:00:06]} 1/2-1/2

[Event "elllobregat Open-A 2019"]
[Site "El Prat de Llobregat"]
[Date "2019.12.07"]
[Round "5.13"]
[White "Gagare, Shardul"]
[Black "Bobadilla Viera, Jorge Samuel"]
[Result "1-0"]
[ECO "B51"]
[WhiteElo "2468"]
[BlackElo "2339"]
[Annotator "ChessBase"]
[PlyCount "77"]
[EventDate "2019.12.03"]
[EventType "swiss"]
[EventCountry "ESP"]
[SourceTitle "playchess.com"]
[Source "ChessBase"]
[SourceQuality "1"]
[TimeControl "40/5400+30:1800+30"]

1. e4 {[%emt 0:01:59]} c5 {[%emt 0:00:00]} 2. Nf3 {[%emt 0:00:22]} d6 {[%emt 0:00:00]} 3. Bb5+ {[%emt 0:00:04]} Nd7 {[%emt 0:00:29]} 4. O-O {[%emt 0:00:18]} a6 {[%emt 0:00:21]} 5. Bd3 {[%emt 0:00:13]} Ngf6 {[%emt 0:00:19]} 6. c3 {[%emt 0:00:11]} b5 {[%emt 0:01:33]} 7. a4 {[%emt 0:02:22]} c4 {[%emt 0:01:48]} 8. Be2 {[%emt 0:00:21]} Bb7 {[%emt 0:02:10]} 9. axb5 {[%emt 0:00:33]} axb5 {[%emt 0:00:44]} 10. Rxa8 {[%emt 0:00:08]} Bxa8 {[%emt 0:04:14]} 11. Na3 {[%emt 0:00:27]} Bxe4 {[%emt 0:15:58]} 12. Nxb5 {[%emt 0:03:24]} d5 {[%emt 0:04:25]} 13. b3 {[%emt 0:00:21]} cxb3 {[%emt 0:02:50]} 14. Qxb3 {[%emt 0:00:13]} e6 {[%emt 0:06:44]} 15. Ba3 {[%emt 0:03:46]} Nc5 {[%emt 0:05:54]} 16. Qb4 {[%emt 0:03:40]} Bxf3 17. gxf3 {[%emt 0:25:05]} Be7 {[%emt 0:15:31]} 18. Rb1 {[%emt 0:13:49]} g5 {[%emt 0:16:16]} 19. Qd4 {[%emt 0:10:18]} Ncd7 {[%emt 0:04:47]} 20. Nd6+ {[%emt 0:00:19]} Kf8 {[%emt 0:00:06]} 21. Rb7 {[%emt 0:08:49]} Qa5 {[%emt 0:08:15]} 22. Ra7 {[%emt 0:08:02]} Qxa3 {[%emt 0:01:19]} 23. Rxa3 {[%emt 0:00:35]} Bxd6 {[%emt 0:00:03]} 24. Ra6 {[%emt 0:03:53]} Bf4 {[%emt 0:02:57]} 25. Ra7 {[%emt 0:05:41]} Ne5 {[%emt 0:02:07]} 26. Ra8+ {[%emt 0:03:14]} Kg7 {[%emt 0:00:03]} 27. Rxh8 {[%emt 0:00:08]} Kxh8 {[%emt 0:00:04]} 28. d3 {[%emt 0:00:04]} Kg7 {[%emt 0:02:22]} 29. c4 {[%emt 0:00:05]} dxc4 {[%emt 0:00:43]} 30. dxc4 Ng8 {[%emt 0:00:45]} 31. Bd3 {[%emt 0:02:59]} f5 {[%emt 0:00:16]} 32. c5 {[%emt 0:01:33]} Nf6 {[%emt 0:02:13]} 33. Kg2 {[%emt 0:01:14]} h5 {[%emt 0:00:25]} 34. h4 {[%emt 0:00:26]} Nxd3 {[%emt 0:00:40]} 35. hxg5 Bxg5 {[%emt 0:00:25]} 36. Qxd3 {[%emt 0:01:31]} Nd5 {[%emt 0:00:02]} 37. Qb5 {[%emt 0:01:37]} Be7 {[%emt 0:00:36]} 38. Qd7 {[%emt 0:00:20]} Kf6 {[%emt 0:01:00]} 39. c6 {[%emt 0:00:01]} 1-0

[Event "elllobregat Open-A 2019"]
[Site "El Prat de Llobregat"]
[Date "2019.12.07"]
[Round "5.15"]
[White "Narciso Dublan, Marc"]
[Black "Sankalp Gupta"]
[Result "1-0"]
[ECO "B20"]
[WhiteElo "2516"]
[BlackElo "2365"]
[Annotator "ChessBase"]
[PlyCount "59"]
[EventDate "2019.12.03"]
[EventType "swiss"]
[EventCountry "ESP"]
[SourceTitle "playchess.com"]
[Source "ChessBase"]
[SourceQuality "1"]
[TimeControl "40/5400+30:1800+30"]

1. e4 {[%emt 0:00:00]} c5 {[%emt 0:01:20]} 2. Be2 {[%emt 0:00:00]} Nc6 {[%emt 0:00:03]} 3. f4 {[%emt 0:00:04]} g6 {[%emt 0:00:03]} 4. Nf3 {[%emt 0:00:11]} Bg7 {[%emt 0:00:02]} 5. O-O {[%emt 0:00:28]} e6 {[%emt 0:02:37]} 6. c3 {[%emt 0:00:47]} d5 {[%emt 0:01:04]} 7. d3 {[%emt 0:02:25]} Nge7 {[%emt 0:00:09]} 8. Na3 {[%emt 0:01:43]} O-O {[%emt 0:00:13]} 9. Nc2 {[%emt 0:05:34]} b6 {[%emt 0:02:28]} 10. e5 {[%emt 0:01:09]} a5 {[%emt 0:04:07]} 11. d4 {[%emt 0:02:31]} Ba6 {[%emt 0:00:42]} 12. Bxa6 {[%emt 0:01:16]} Rxa6 {[%emt 0:00:03]} 13. Be3 {[%emt 0:05:29]} cxd4 {[%emt 0:01:57]} 14. cxd4 {[%emt 0:03:32]} b5 {[%emt 0:02:32]} 15. Nce1 {[%emt 0:02:39]} Qb6 {[%emt 0:00:49]} 16. Nd3 {[%emt 0:00:26]} Ra7 {[%emt 0:05:42]} 17. g4 {[%emt 0:11:15]} Nb4 {[%emt 0:03:22]} 18. Nxb4 {[%emt 0:06:26]} axb4 {[%emt 0:00:03]} 19. Qd2 {[%emt 0:00:11]} Rfa8 {[%emt 0:02:00]} 20. Qxb4 {[%emt 0:02:28]} Nc6 {[%emt 0:08:48]} 21. Qc5 {[%emt 0:18:59]} Qxc5 {[%emt 0:01:06]} 22. dxc5 {[%emt 0:00:03]} Rxa2 {[%emt 0:00:09]} 23. Rxa2 {[%emt 0:00:17]} Rxa2 {[%emt 0:00:03]} 24. Nd4 {[%emt 0:00:20]} Nxd4 {[%emt 0:03:16]} 25. Bxd4 {[%emt 0:00:03]} Kf8 {[%emt 0:02:42]} 26. c6 {[%emt 0:08:10]} Ke8 27. Rc1 {[%emt 0:03:58]} Kd8 {[%emt 0:04:06]} 28. Bc5 g5 29. Bd6 {[%emt 0:06:03]} gxf4 {[%emt 0:16:24]} 30. Rc5 {[%emt 0:04:26]} 1-0